Cogmind - Beta 10.1 @@@ ROGUE MODE // 2020.10.23 @ 15:08:58 Player: ELF Result: Destroyed by as-59032 with Assembled Heavy Rifle Performance ------------- Evolutions (0) 0 Regions Visited (2) 400 Robots Destroyed (12) 60 Value Destroyed (211) 211 Prototype IDs (0) 0 Alien Tech Used (0) 0 Bonus (0) 0 TOTAL SCORE: 671 Bonus ------- None Cogmind --------- Core Integrity 0/250 Matter 290/300 Energy 84/100 System Corruption 4% Temperature Cool (0) Movement Hovering (180) Ox2 Location -10/Mines Parts ------- > --- POWER (1) -------- (None) > --- PROPULSION (2) --- Hover Unit > --- UTILITY (2) ------ Large Storage Unit > --- WEAPON (2) ------- (None) > --- INVENTORY (10) --- Light Nuclear Core Light Treads Hover Unit Small Storage Unit Large Storage Unit High-capacity Matter Pod (200) Small Laser Light Assault Rifle Mining Laser Peak State ------------ > --- POWER ------------ Light Ion Engine > --- PROPULSION ------- Light Treads Light Treads > --- UTILITY ---------- Large Storage Unit Large Storage Unit > --- WEAPON ----------- EM Pulse Gun Light Assault Rifle > --- INVENTORY -------- Light Ion Engine Light Treads Hover Unit Hover Unit Small Storage Unit Large Matter Pod Light Armor Plating EM Pulse Gun Small Laser Small Laser [Rating: 8] Favorites ----------- Power Light Ion Engine Engine Light Ion Engine Propulsion Light Treads Treads Light Treads Hover Unit Hover Unit Utility Large Storage Unit Storage Large Storage Unit Protection Light Armor Plating Weapon EM Pulse Gun Energy Gun EM Pulse Gun Ballistic Gun Light Assault Rifle Special Weapon Mining Laser Build | -11 -10 -10 ------- Run | Scr Mat Min Slots Evolved . | . . . Power . | . . . Propulsion . | . . . Utility . | . . . Weapon . | . . . Parts Attached 16 | 7 8 1 Power 2 | 1 1 . Engine 2 | 1 1 . Core . | . . . Reactor . | . . . Propulsion 3 | 2 . 1 Treads 2 | 2 . . Leg . | . . . Wheel . | . . . Hover 1 | . . 1 Flight . | . . . Utility 4 | 1 3 . Device . | . . . Storage 3 | 1 2 . Processor . | . . . Hackware . | . . . Protection 1 | . 1 . Artifact . | . . . Weapon 7 | 3 4 . Energy Gun 5 | 3 2 . Energy Cannon . | . . . Ballistic Gun 1 | . 1 . Ballistic Cannon . | . . . Launcher . | . . . Special Weapon 1 | . 1 . Impact Weapon . | . . . Slashing Weapon . | . . . Piercing Weapon . | . . . Special Melee Weapon . | . . . Unidentified Prototypes . | . . . Parts Lost 8 | . 2 6 Power 2 | . 1 1 Propulsion 2 | . . 2 Utility 1 | . . 1 Weapon 3 | . 1 2 Highest Loss Streak 6 | . 1 6 Average Slot Usage (%) 98 | . 99 94 Engine 13 | . 13 13 Treads 27 | . 28 26 Storage 25 | . 26 14 Protection 2 | . 1 13 Energy Gun 15 | . 14 25 Ballistic Gun 11 | . 13 . Naked Turns . | . . . Heaviest Build 38 | 10 38 25 Greatest Support 40 | 40 40 40 Greatest Overweight (x) 5 | . . 5 Average Overweight (x) . | . . . Largest Inventory Capacity 16 | 6 16 10 Average Capacity 13 | 5 14 10 Most Carried 11 | 3 11 10 Average Carried 7 | 2 8 9 Final Capacity 10 | 6 10 10 Final Carried 10 | 2 10 9 Class Distribution -------------------- 100% | Mutant Dominant Class ---------------- Mutant | -10/Materials Mutant | -10/Mines Resources | -11 -10 -10 ----------- Run | Scr Mat Min Matter Collected 662 | 246 360 56 Remotely . | . . . Salvage Created 389 | 54 279 56 Parts 23 | 2 13 8 Haulers Intercepted 1 | . 1 . Recyclers Shooed . | . . . Parts Field Recycled . | . . . Retrieved Matter . | . . . Parts Self-Destructed . | . . . Prevented . | . . . Kills | -11 -10 -10 ------- Run | Scr Mat Min Combat Hostiles Destroyed 7 | . 4 3 Guns 6 | . 3 3 AOE 1 | . 1 . Classes Destroyed 6 | 1 5 . Hauler 1 | . 1 . Recycler 1 | 1 . . Operator 1 | . 1 . Watcher 2 | . 2 . Swarmer 4 | . 1 3 Grunt 3 | . 3 . Best Kill Streak 3 | 1 3 3 Combat Bots Only 3 | . 3 3 Max Kills in Single Turn 2 | 1 2 1 Gunslinging . | . . . Exploded 1 | . 1 . Melee . | . . . Uniques/NPCs Destroyed . | . . . Combat | -11 -10 -10 -------- Run | Scr Mat Min Damage Taken 994 | . 432 562 Core 266 | . 99 167 Absorbed by Shields . | . . . Core Remaining (%) 100 | 100 . . Volleys Fired 51 | 3 44 4 Largest 2 | 2 2 2 Hottest 100 | 80 100 80 Shots Fired 101 | 6 87 8 Gun 100 | 6 86 8 Cannon . | . . . Launcher . | . . . Special 1 | . 1 . Kinetic 43 | . 43 . Thermal 8 | 3 1 4 Explosive . | . . . Electromagnetic 50 | 3 43 4 Robot Hit Streak 14 | 5 14 1 Robot Miss Streak 4 | 1 4 4 Penetration Max . | . . . Secondary Targets 1 | . . 1 Max Gunslinging Chain 1 | . . 1 Shots Hit Robots 59 | 5 52 2 Core Hits 21 | 2 16 3 Critical Hits . | . . . Critical Kills . | . . . Critical Parts Destroyed . | . . . Melee Attacks . | . . . Impact . | . . . Slashing . | . . . Piercing . | . . . Sneak Attacks . | . . . Combat Hostiles . | . . . Follow-up Attacks . | . . . Damage Inflicted 837 | 46 748 43 Guns 711 | 46 622 43 Cannons . | . . . Explosions 126 | . 126 . Melee . | . . . Ramming . | . . . Kinetic 194 | . 194 . Thermal 159 | 21 126 12 Explosive . | . . . Electromagnetic 484 | 25 428 31 Impact . | . . . Slashing . | . . . Piercing . | . . . Highest Corruption 4 | . . 4 Average Corruption 4 | . . 4 Corruption Purged . | . . . Effects 1 | . . 1 Matter Fused 1 | . . 1 Overload Shots . | . . . Overflow Damage . | . . . Projectiles . | . . . Explosions . | . . . Melee . | . . . Knockbacks . | . . . Impact . | . . . Kinetic . | . . . Secondary . | . . . Self-Inflicted Damage 82 | . 82 . Shots 3 | . 3 . Rammed . | . . . Targets Rammed . | . . . Kicked . | . . . Crushed . | . . . Highest Temperature 108 | 54 108 108 Average Temperature 33 | 29 30 56 Received Heat Transfer 117 | . 117 . Siege Activations . | . . . Robots Corrupted . | . . . Combat Hostiles . | . . . Parts Fried 2 | . 2 . Impact Corruptions . | . . . Robots Melted . | . . . Combat Hostiles . | . . . Parts Melted . | . . . Heat Transferred 275 | 50 200 25 Parts Sabotaged . | . . . Parts Stolen . | . . . Parts Stripped . | . . . Power Chain Reactions 3 | . 3 . Missiles Intercepted . | . . . Alert | -11 -10 -10 ------- Run | Scr Mat Min Peak Influence 100 | 5 74 100 Initial 25 | . 3 25 Average 37 | 2 36 64 Maximum Alert Level . | . . . Low Security (%) 100 | 100 100 100 Level 1 . | . . . Level 2 . | . . . Level 3 . | . . . Level 4 . | . . . Level 5 . | . . . High Security . | . . . Max Security . | . . . Squads Dispatched 1 | . 1 . Investigation . | . . . Extermination . | . . . Reinforcement 1 | . 1 . Assault . | . . . Garrison . | . . . Intercept . | . . . Construction Impeded . | . . . Haulers Reinforced . | . . . Stealth | -11 -10 -10 --------- Run | Scr Mat Min Distress Signals . | . . . Communications Jammed . | . . . Distress Signals . | . . . Times Spotted 44 | . 22 22 Peak Tracking Total 10 | . 5 10 Tactical Retreats 3 | . 3 . Traps | -11 -10 -10 ------- Run | Scr Mat Min Traps Triggered . | . . . Indirectly . | . . . Trap Hack Attempts . | . . . Triggered . | . . . Disarmed . | . . . Reprogrammed . | . . . Reused . | . . . Traps Extracted . | . . . Installed . | . . . Triggered . | . . . Machines | -11 -10 -10 ---------- Run | Scr Mat Min Machines Disabled . | . . . Max in Single Turn . | . . . Machines Sabotaged . | . . . Garrisons Compromised . | . . . Overloaded Fab Kills . | . . . Fab Network Shutdowns . | . . . Hacking | -11 -10 -10 --------- Run | Scr Mat Min Machines Accessed 2 | . 2 . Terminals 2 | . 2 . Fabricators . | . . . Repair Stations . | . . . Recycling Units . | . . . Scanalyzers . | . . . Garrison Access . | . . . Total Hacks 6 | . 6 . Successful 3 | . 3 . Failed 3 | . 3 . Catastrophic 1 | . 1 . Database Lockouts . | . . . Manual 5 | . 5 . Terminals 6 | . 6 . Fabricators . | . . . Repair Stations . | . . . Recycling Units . | . . . Scanalyzers . | . . . Garrison Access . | . . . Terminal Hacks 1 | . 1 . Zone Layout 1 | . 1 . Fabricator Hacks . | . . . Repair Station Hacks . | . . . Recycling Unit Hacks . | . . . Scanalyzer . | . . . Garrison Access Hacks . | . . . Unauthorized Hacks 2 | . 2 . Terminals 2 | . 2 . Track 1 | . 1 . Operators 1 | . 1 . Fabricators . | . . . Repair Stations . | . . . Recycling Units . | . . . Scanalyzers . | . . . Garrison Access . | . . . Data Cores Recovered . | . . . Used . | . . . Hacking Detections 2 | . 2 . Full Trace Events . | . . . Feedback Events . | . . . Feedback Blocked . | . . . Robot Schematics Acquired . | . . . Robots Built . | . . . Matter . | . . . Time . | . . . Total Robot Build Rating . | . . . Part Schematics Acquired . | . . . Parts Built . | . . . Matter . | . . . Time . | . . . Total Part Build Rating . | . . . Parts Repaired . | . . . Time . | . . . Parts Recycled . | . . . Recycled Matter . | . . . Retrieved Matter . | . . . Retrieved Components . | . . . Parts Scanalyzed . | . . . Part Schematics Acquired . | . . . Parts Damaged . | . . . Bothacking | -11 -10 -10 ------------ Run | Scr Mat Min Used RIF Installer . | . . . Robots Hacked . | . . . Non-combat . | . . . Combat . | . . . Robot Hacks Applied . | . . . Relay Couplers Released . | . . . Robots Rewired . | . . . Allies Hacked . | . . . Hacks Repelled . | . . . Allies | -11 -10 -10 -------- Run | Scr Mat Min Total Allies . | . . . Largest Group . | . . . Highest-Rated Group . | . . . Highest-Rated Ally . | . . . Total Orders . | . . . Ally Attacks . | . . . Total Damage . | . . . Kills . | . . . Allies Corrupted . | . . . Allies Melted . | . . . Intel | -11 -10 -10 ------- Run | Scr Mat Min Robot Analysis Total . | . . . Derelict Logs Recovered . | . . . Drone Launches . | . . . Drone Recoveries . | . . . Exploration | -11 -10 -10 ------------- Run | Scr Mat Min Turns Passed 1662 | 96 1401 165 Spaces Moved 855 | 50 711 94 Core 5 | 4 . 1 Treads 850 | 46 711 93 Legs . | . . . Wheels . | . . . Hover . | . . . Flight . | . . . Fastest Speed 50 | 50 160 160 Average Speed 159 | 151 160 161 Slowest Speed 300 | 160 160 300 Overloaded Moves . | . . . Propulsion Burnouts . | . . . Robots Hopped . | . . . Cave-ins Triggered . | . . . Exploration Rate (%) 33 | 4 74 22 Regions Visited 2 Branch Regions 1 Pre-discovered Areas . | . . . Known Exits Taken . | . . . Unknown Exits Taken 2 | 1 1 . Scrap Searched . | . . . Spaces Dug 1 | . 1 . Terrain Destroyed 14 | . 14 . Melee . | . . . Projectile 1 | . 1 . AOE 13 | . 13 . Terrain Rammed . | . . . Walls Destroyed . | . . . Machines Disabled . | . . . Actions | -11 -10 -10 --------- Run | Scr Mat Min Total 1054 | 62 893 99 Wait 119 | . 119 . Move 853 | 49 710 94 Hop . | . . . Pick Up 13 | 3 10 . Fast Attach 6 | 5 1 . Attach 5 | 1 3 1 Detach 1 | . 1 . Swap 5 | 1 4 . Drop 1 | . 1 . Fire 51 | 3 44 4 Melee . | . . . Ram . | . . . Kick . | . . . Crush . | . . . Escape Stasis . | . . . Rewire . | . . . Trap . | . . . Miscellaneous . | . . . Route ------- -11/Scrapyard -10/Materials (discovered 3 exits: [*Mat x2] / [*Min]) -10/Mines History --------- Turn | Location | Event 4 | -11/Scrapyard | Discovered new exit (range 16) 97 | -11/Scrapyard | Entered Materials 308 | -10/Materials | Build established: Mutant 380 | -10/Materials | Discovered new exit (range 4) 537 | -10/Materials | Discovered new exit (range 16) 696 | -10/Materials | Discovered new exit (range 16) 1498 | -10/Materials | Entered Mines 1517 | -10/Mines | Met a Derelict bent on vengeance 1603 | -10/Mines | Assembled infested the area 1654 | -10/Mines | Core integrity fell below 50% 1657 | -10/Mines | Core integrity fell below 20% 1663 | -10/Mines | Destroyed by as-59032 with Assembled Heavy Rifle Last Messages --------------- 01649_ System corrupted by crushing effect (+4). 01650_ System corrupted: Matter fused (-8). 01651_ Lgt. Ion Engine destroyed. 01651_ Lgt. Armor Plating destroyed. 01651_ as-70875 destroyed. 01651_ as-34064 destroyed. 01653_ as-22785 destroyed. 01653_ as-98796 destroyed. 01654_ as-97126 destroyed. 01654_ as-67219 destroyed. 01654_ Lgt. Treads destroyed. 01655_ The unstable cave ceiling collapses. 01657_ EM Pulse Gun destroyed. 01658_ The unstable cave ceiling collapses. 01658_ as-86110 destroyed. 01658_ as-90748 destroyed. 01658_ as-13454 destroyed. 01659_ as-51464 destroyed. 01659_ Lgt. Treads destroyed. 01662_ as-18115 destroyed. Map ----- +----------------------------------------------------+ | ??????????????????????????# ??? | | ?????????????????????????## """ ????? | | ???????????????????????### ### """ ???????? | | ??????????????????????## ##? """ ????????? | | ?????????????#????????# #?? ???????? | | ?????????????# ???????## ## #??## ??????? | | ?????????????# ????????# #### #????### ?????? | | ?????????????# ???????# #??# #????????# ????? | | ???????????### #??????# #??# #?????????? ???? | | ??????????## #?????# #### #??????????? ????? | | ??????????# #????# ######????????????? | | ???????????? ########## #????????????? | | ?????????????? #?????# #????????????? | | ???????????????? #?????###### #????????????? | | ?????????????? ??????????# #????????????? | | ??????????????? a ??????????# #????????????? | | ????????????? ?a a ??????????# #????????????? | | ?????????????? # #?????????# #????????????? | | ???????????????#a ?????????# #????????????? | | ????????????????# a ##???????# #????????????? | | ????????????????# ???????# #????????????? | | ????????????????# #####???# #????????????? | | ???????????????## ##### #????????????? | | ???????????????# # a d #????????????? | | ????????????????# d ##???????????? | | ????????????????# @ ### ### #???????? | | ????????????????## #?# #???????? | | ?????????????????### #?# #####???????? | | ???????????????????# # ## # ##?????????? | | ???????????????????########? ##????????? | | ????????????????????????????? # #????????? | | ?????????????????????????????? ## #????????? | | ??????????????????????????????? ## ?????? | | ???????????????????????????????? ####### ####????? | | ?????????????????????????????????#?????? #???????? | | ?????????????????????????????????????????#???????? | | ?????????????????????????????????????????????????? | | ?????????????????????????????????????????????????? | | ?????????????????????????????????????????????????? | | ?????????????????????????????????????????????????? | | ?????????????????????????????????????????????????? | | ?????????????????????????????????????????????????? | | ?????????????????????????????????????????????????? | | ?????????????????????????????????????????????????? | | ?????????????????????????????????????????????????? | | ?????????????????????????????????????????????????? | | ?????????????????????????????????????????????????? | | ?????????????????????????????????????????????????? | | ?????????????????????????????????????????????????? | | ?????????????????????????????????????????????????? | +----------------------------------------------------+ Best States ------------- Heat Dissipation 25 Energy Generation 10 Energy Capacity 125 Matter Stores 300 Matter Capacity 300 Sight Range 16 Terrain Scan Density 10 Armor Coverage 150 Evasion (%) 40 Recoil Reduction 2 Item Schematics ----------------- None Robot Schematics ------------------ None Fabricated ------------ Nothing Alien Tech Used ----------------- None Achievements -------------- None Challenges ------------ None Game ------ Seed TachyonImpulseDrive Manual? 0 Play Time 00:09:37 Cumulative 56.6 hours Start 2020.10.23 @ 15:00:19 End 2020.10.23 @ 15:08:58 Sessions 1 Manual Loads 0 Difficulty Rogue Special Mode None Game No. 42 Rogue 42 Adventurer 0 Explorer 0 Win Type - Total 0 Types 0/0/0/0/0/0/0/0/0 Lore% 43 Gallery% 51 Achievement% 44 Wizard Run 0 Options --------- ASCII 0 Keyboard 0 Movement Numpad Keybinds 0 Fullscreen 2 Font 18/SmallcapsGlow Map View 76x50 Tactical HUD 1 Map Filters NONE Filters NONE Steam 1 RUN: 10dfbc4f-4b83-4592-af3c-93e3bc8cde0a